[Event "*** Titled Tuesday Blitz"]
[Site "Chess.com"]
[Date "2018.05.01"]
[Round "2"]
[White "AlexanderL"]
[Black "Keranke"]
[Result "1-0"]
[WhiteElo "2583"]
[BlackElo "2673"]
[TimeControl "180+2"]
[EndTime "13:19:35 PDT"]
[Termination "AlexanderL won by resignation"]

1. Nf3 {[%clk 0:02:51.7]} 1... g6 {[%clk 0:03:00.6]} 2. e4 {[%clk 0:02:50]} 2...
Bg7 {[%clk 0:03:01.9]} 3. d4 {[%clk 0:02:50.3]} 3... d6 {[%clk 0:03:03.3]} 4.
Bc4 {[%clk 0:02:49.2]} 4... e6 {[%clk 0:03:00.2]} 5. O-O {[%clk 0:02:46.1]} 5...
Ne7 {[%clk 0:02:59.3]} 6. Re1 {[%clk 0:02:41.8]} 6... Nd7 {[%clk 0:02:56.9]} 7.
Bf1 {[%clk 0:02:40]} 7... O-O {[%clk 0:02:55.4]} 8. c4 {[%clk 0:02:41]} 8... c5
{[%clk 0:02:46.1]} 9. Nc3 {[%clk 0:02:38.7]} 9... cxd4 {[%clk 0:02:41.8]} 10.
Nxd4 {[%clk 0:02:38.8]} 10... a6 {[%clk 0:02:43.4]} 11. Be3 {[%clk 0:02:38.2]}
11... Qc7 {[%clk 0:02:41.5]} 12. Rc1 {[%clk 0:02:37.2]} 12... b6 {[%clk
0:02:41.4]} 13. f3 {[%clk 0:02:31.9]} 13... Bb7 {[%clk 0:02:41.3]} 14. Qd2
{[%clk 0:02:32.8]} 14... Rac8 {[%clk 0:02:39.4]} 15. b3 {[%clk 0:02:33.9]} 15...
Qb8 {[%clk 0:02:28.4]} 16. Red1 {[%clk 0:02:35]} 16... Rfd8 {[%clk 0:02:18]} 17.
Bg5 {[%clk 0:02:35.5]} 17... Nf6 {[%clk 0:02:16.5]} 18. Qf4 {[%clk 0:02:09.2]}
18... e5 {[%clk 0:00:53.2]} 19. Qh4 {[%clk 0:02:06.9]} 19... exd4 {[%clk
0:00:38]} 20. Bxf6 {[%clk 0:02:07.8]} 20... dxc3 {[%clk 0:00:38]} 21. Bxg7
{[%clk 0:02:00.6]} 21... Kxg7 {[%clk 0:00:39.5]} 22. Qxe7 {[%clk 0:02:01.6]}
22... b5 {[%clk 0:00:40.2]} 23. Rxc3 {[%clk 0:01:58.8]} 23... Rc7 {[%clk
0:00:41.4]} 24. Qg5 {[%clk 0:01:56.3]} 24... h6 {[%clk 0:00:32]} 25. Qe3 {[%clk
0:01:56.8]} 25... b4 {[%clk 0:00:31.5]} 26. Rcd3 {[%clk 0:01:56.2]} 26... Rc5
{[%clk 0:00:30.8]} 27. Qd4+ {[%clk 0:01:43.8]} 27... Kh7 {[%clk 0:00:29.3]} 28.
Qf6 {[%clk 0:01:44.4]} 28... Qc7 {[%clk 0:00:24.2]} 29. Rxd6 {[%clk 0:01:43.7]}
29... Rxd6 {[%clk 0:00:24.8]} 30. Qxd6 {[%clk 0:01:39.4]} 30... Qxd6 {[%clk
0:00:22.8]} 31. Rxd6 {[%clk 0:01:41.3]} 31... Rc7 {[%clk 0:00:24.7]} 32. Rb6
{[%clk 0:01:35.2]} 32... a5 {[%clk 0:00:22.2]} 33. Rb5 {[%clk 0:01:35.7]} 33...
Rd7 {[%clk 0:00:22.9]} 34. Rxa5 {[%clk 0:01:36.5]} 34... Rd1 {[%clk 0:00:22.5]}
35. Ra7 {[%clk 0:01:35.6]} 1-0

[Event "*** Titled Tuesday Blitz"]
[Site "Chess.com"]
[Date "2018.05.01"]
[Round "2"]
[White "Ginger_GM"]
[Black "MITerryble"]
[Result "0-1"]
[WhiteElo "2473"]
[BlackElo "2668"]
[TimeControl "180+2"]
[EndTime "13:19:36 PDT"]
[Termination "MITerryble won by resignation"]

1. d4 {[%clk 0:02:57.8]} 1... e6 {[%clk 0:03:01]} 2. Nf3 {[%clk 0:02:57.2]} 2...
Nf6 {[%clk 0:03:02.1]} 3. c4 {[%clk 0:02:56.9]} 3... Bb4+ {[%clk 0:03:02]} 4.
Nbd2 {[%clk 0:02:57.2]} 4... O-O {[%clk 0:03:02.1]} 5. a3 {[%clk 0:02:56.8]}
5... Be7 {[%clk 0:03:02.9]} 6. e4 {[%clk 0:02:53.1]} 6... d6 {[%clk 0:03:03.5]}
7. Be2 {[%clk 0:02:51]} 7... Nbd7 {[%clk 0:03:01.2]} 8. O-O {[%clk 0:02:42.2]}
8... e5 {[%clk 0:03:01.3]} 9. d5 {[%clk 0:02:42.8]} 9... a5 {[%clk 0:03:01.3]}
10. b3 {[%clk 0:02:42.8]} 10... g6 {[%clk 0:02:54.5]} 11. Qc2 {[%clk 0:02:41.1]}
11... Nh5 {[%clk 0:02:54.4]} 12. Nb1 {[%clk 0:02:37.8]} 12... Nc5 {[%clk
0:02:52.8]} 13. Nc3 {[%clk 0:02:36.1]} 13... a4 {[%clk 0:02:41.6]} 14. b4 {[%clk
0:02:20.2]} 14... Nb3 {[%clk 0:02:42.3]} 15. Rb1 {[%clk 0:02:21.6]} 15... Nxc1
{[%clk 0:02:43.2]} 16. Rbxc1 {[%clk 0:02:22.1]} 16... b6 {[%clk 0:02:38.8]} 17.
c5 {[%clk 0:02:13.4]} 17... dxc5 {[%clk 0:02:28.9]} 18. Nxe5 {[%clk 0:02:09.9]}
18... Bd6 {[%clk 0:02:17.7]} 19. Nc6 {[%clk 0:01:42.2]} 19... Qg5 {[%clk
0:02:18.6]} 20. Bxh5 {[%clk 0:01:38.8]} 20... Qxh5 {[%clk 0:02:19.1]} 21. f4
{[%clk 0:01:31.1]} 21... cxb4 {[%clk 0:02:19.7]} 22. axb4 {[%clk 0:01:31.8]}
22... f6 {[%clk 0:01:46.1]} 23. Nb5 {[%clk 0:01:18]} 23... Ba6 {[%clk
0:01:46.2]} 24. Qd3 {[%clk 0:00:47.3]} 24... Rfe8 {[%clk 0:01:36.8]} 25. Rf3
{[%clk 0:00:43.8]} 25... Bxb5 {[%clk 0:01:34.7]} 26. Qxb5 {[%clk 0:00:43.6]}
26... Rxe4 {[%clk 0:01:36.2]} 27. Qd3 {[%clk 0:00:28.3]} 27... Rae8 {[%clk
0:01:26]} 28. Rcf1 {[%clk 0:00:21]} 28... a3 {[%clk 0:01:22.4]} 29. Qxa3 {[%clk
0:00:20.6]} 29... Qxd5 {[%clk 0:01:22.8]} 30. Qc3 {[%clk 0:00:20.9]} 30... Rc4
{[%clk 0:01:21]} 0-1

[Event "*** Titled Tuesday Blitz"]
[Site "Chess.com"]
[Date "2018.05.01"]
[Round "2"]
[White "FLchessplayer"]
[Black "Grootneus"]
[Result "1-0"]
[WhiteElo "2037"]
[BlackElo "2130"]
[TimeControl "180+2"]
[EndTime "13:19:43 PDT"]
[Termination "FLchessplayer won by checkmate"]

1. e4 {[%clk 0:02:57.4]} 1... c5 {[%clk 0:03:00.4]} 2. Nf3 {[%clk 0:02:56.2]}
2... Nc6 {[%clk 0:02:59.1]} 3. c3 {[%clk 0:02:56.8]} 3... d5 {[%clk 0:02:55.8]}
4. exd5 {[%clk 0:02:56.1]} 4... Qxd5 {[%clk 0:02:57.7]} 5. d4 {[%clk 0:02:57]}
5... Bf5 {[%clk 0:02:53]} 6. Be2 {[%clk 0:02:51.8]} 6... O-O-O {[%clk
0:02:40.5]} 7. Be3 {[%clk 0:02:50.6]} 7... cxd4 {[%clk 0:02:34.8]} 8. cxd4
{[%clk 0:02:48.4]} 8... e5 {[%clk 0:02:33.7]} 9. Nc3 {[%clk 0:02:37.1]} 9... Bb4
{[%clk 0:02:27.3]} 10. dxe5 {[%clk 0:02:36]} 10... Qa5 {[%clk 0:02:12.4]} 11.
Qb3 {[%clk 0:02:34.3]} 11... Nge7 {[%clk 0:01:43.1]} 12. O-O {[%clk 0:02:32.4]}
12... Ng6 {[%clk 0:01:40.1]} 13. Rac1 {[%clk 0:02:31.9]} 13... Kb8 {[%clk
0:01:38.6]} 14. Qxf7 {[%clk 0:02:17]} 14... Rhf8 {[%clk 0:01:33.3]} 15. Qb3
{[%clk 0:02:01.1]} 15... Ka8 {[%clk 0:01:25.9]} 16. Rfd1 {[%clk 0:01:49]} 16...
Ngxe5 {[%clk 0:01:15.7]} 17. Nxe5 {[%clk 0:01:46.2]} 17... Nxe5 {[%clk
0:01:11.2]} 18. Rxd8+ {[%clk 0:01:45.5]} 18... Rxd8 {[%clk 0:01:12.2]} 19. a3
{[%clk 0:01:31]} 19... Be7 {[%clk 0:01:01.2]} 20. Nb5 {[%clk 0:01:10.5]} 20...
a6 {[%clk 0:00:48.7]} 21. Nd4 {[%clk 0:01:00.4]} 21... Bg6 {[%clk 0:00:32]} 22.
Nf3 {[%clk 0:00:57.7]} 22... Nd3 {[%clk 0:00:26.4]} 23. Bxd3 {[%clk 0:00:51.1]}
23... Rxd3 {[%clk 0:00:28.3]} 24. Qg8+ {[%clk 0:00:42]} 24... Rd8 {[%clk
0:00:24.5]} 25. Rc8+ {[%clk 0:00:35.6]} 25... Rxc8 {[%clk 0:00:23.4]} 26. Qxc8#
{[%clk 0:00:36.4]} 1-0

[Event "*** Titled Tuesday Blitz"]
[Site "Chess.com"]
[Date "2018.05.01"]
[Round "2"]
[White "Blitzstream"]
[Black "Alexander_Donchenko"]
[Result "0-1"]
[WhiteElo "2486"]
[BlackElo "2675"]
[TimeControl "180+2"]
[EndTime "13:19:49 PDT"]
[Termination "Alexander_Donchenko won by checkmate"]

1. d4 {[%clk 0:03:01.9]} 1... Nf6 {[%clk 0:03:00.8]} 2. Bg5 {[%clk 0:03:02.4]}
2... d5 {[%clk 0:03:01.3]} 3. e3 {[%clk 0:03:01.8]} 3... c5 {[%clk 0:03:02.5]}
4. c3 {[%clk 0:03:02.2]} 4... Nc6 {[%clk 0:03:01.1]} 5. Nf3 {[%clk 0:03:02.8]}
5... Bf5 {[%clk 0:03:00.3]} 6. Qb3 {[%clk 0:02:43.4]} 6... Qb6 {[%clk 0:02:56]}
7. Bxf6 {[%clk 0:02:36.2]} 7... gxf6 {[%clk 0:02:51.2]} 8. dxc5 {[%clk
0:02:28.4]} 8... Qxc5 {[%clk 0:02:51.9]} 9. Nbd2 {[%clk 0:02:07.5]} 9... O-O-O
{[%clk 0:02:45.9]} 10. Bb5 {[%clk 0:01:49.1]} 10... Rg8 {[%clk 0:02:41.2]} 11.
g3 {[%clk 0:01:50.1]} 11... e5 {[%clk 0:02:34]} 12. O-O {[%clk 0:01:06.7]} 12...
a6 {[%clk 0:02:25.1]} 13. Be2 {[%clk 0:01:05.2]} 13... h5 {[%clk 0:02:16.1]} 14.
Nh4 {[%clk 0:01:04.7]} 14... Bg4 {[%clk 0:02:11.6]} 15. Bd3 {[%clk 0:00:57.8]}
15... e4 {[%clk 0:02:07.4]} 16. Bc2 {[%clk 0:00:57.2]} 16... f5 {[%clk
0:02:01.4]} 17. Bd1 {[%clk 0:00:51.1]} 17... Ne5 {[%clk 0:01:45.9]} 18. Bxg4
{[%clk 0:00:35.3]} 18... fxg4 {[%clk 0:01:46.2]} 19. Rad1 {[%clk 0:00:34.1]}
19... Be7 {[%clk 0:01:37.3]} 20. Nf5 {[%clk 0:00:35.3]} 20... Rg5 {[%clk
0:01:36.1]} 21. Nxe7+ {[%clk 0:00:34.5]} 21... Qxe7 {[%clk 0:01:38]} 22. c4
{[%clk 0:00:31.4]} 22... d4 {[%clk 0:01:16.5]} 23. exd4 {[%clk 0:00:25.9]} 23...
Rxd4 {[%clk 0:01:18.4]} 24. Qe3 {[%clk 0:00:24.6]} 24... Rd3 {[%clk 0:01:17.1]}
25. Qe2 {[%clk 0:00:12.7]} 25... h4 {[%clk 0:01:13.7]} 26. Nxe4 {[%clk
0:00:13.3]} 26... Rxd1 {[%clk 0:01:09.6]} 27. Rxd1 {[%clk 0:00:14]} 27... Nf3+
{[%clk 0:01:07.3]} 28. Kh1 {[%clk 0:00:15.3]} 28... Re5 {[%clk 0:01:08.8]} 29.
Nd6+ {[%clk 0:00:09.7]} 29... Qxd6 {[%clk 0:01:10]} 30. Qxf3 {[%clk 0:00:06]}
30... gxf3 {[%clk 0:01:11.2]} 31. Rxd6 {[%clk 0:00:07.3]} 31... Re1# {[%clk
0:01:12.3]} 0-1

[Event "*** Titled Tuesday Blitz"]
[Site "Chess.com"]
[Date "2018.05.01"]
[Round "2"]
[White "GP9isback23"]
[Black "ENEASZ"]
[Result "0-1"]
[WhiteElo "2250"]
[BlackElo "2436"]
[TimeControl "180+2"]
[EndTime "13:19:57 PDT"]
[Termination "ENEASZ won by resignation"]

1. d4 {[%clk 0:03:01.9]} 1... d5 {[%clk 0:02:59.7]} 2. Nf3 {[%clk 0:03:02.2]}
2... Nf6 {[%clk 0:03:00.4]} 3. c4 {[%clk 0:03:02.2]} 3... e6 {[%clk 0:03:01.3]}
4. Nc3 {[%clk 0:03:03.3]} 4... Be7 {[%clk 0:03:01.8]} 5. cxd5 {[%clk 0:03:02.5]}
5... exd5 {[%clk 0:03:03.7]} 6. Bg5 {[%clk 0:03:03.2]} 6... Nbd7 {[%clk
0:03:03.4]} 7. e3 {[%clk 0:03:04.3]} 7... c6 {[%clk 0:03:04]} 8. Bd3 {[%clk
0:03:05.4]} 8... Nh5 {[%clk 0:03:05.1]} 9. Bxe7 {[%clk 0:03:01.8]} 9... Qxe7
{[%clk 0:03:07]} 10. Qc2 {[%clk 0:03:01.5]} 10... g6 {[%clk 0:03:07]} 11. g4
{[%clk 0:02:50.6]} 11... Ng7 {[%clk 0:03:03.8]} 12. O-O-O {[%clk 0:02:41.4]}
12... Nb6 {[%clk 0:03:02]} 13. Rhg1 {[%clk 0:02:38.2]} 13... Be6 {[%clk
0:03:01.4]} 14. g5 {[%clk 0:02:19.3]} 14... O-O-O {[%clk 0:03:01.2]} 15. Ne5
{[%clk 0:02:20.7]} 15... Kb8 {[%clk 0:03:01.4]} 16. f4 {[%clk 0:02:22.1]} 16...
Bf5 {[%clk 0:02:58.9]} 17. Kb1 {[%clk 0:02:21.1]} 17... Rhe8 {[%clk 0:02:49.3]}
18. Rge1 {[%clk 0:02:15.1]} 18... Bxd3 {[%clk 0:02:46.6]} 19. Qxd3 {[%clk
0:02:13.9]} 19... Nf5 {[%clk 0:02:47.2]} 20. Rc1 {[%clk 0:02:08.2]} 20... h6
{[%clk 0:02:39.3]} 21. gxh6 {[%clk 0:02:06.7]} 21... Nxh6 {[%clk 0:02:37.5]} 22.
b3 {[%clk 0:02:00.9]} 22... Nf5 {[%clk 0:02:27.9]} 23. Rc2 {[%clk 0:01:52.6]}
23... Rh8 {[%clk 0:02:28.1]} 24. Rg2 {[%clk 0:01:52.9]} 24... Rh3 {[%clk
0:02:27.3]} 25. Qd2 {[%clk 0:01:50.5]} 25... Rdh8 {[%clk 0:02:27.2]} 26. Ree2
{[%clk 0:01:50.9]} 26... a6 {[%clk 0:02:22]} 27. e4 {[%clk 0:01:42.2]} 27...
dxe4 {[%clk 0:02:22.1]} 28. Nxe4 {[%clk 0:01:43.7]} 28... Nd5 {[%clk 0:02:11.6]}
29. Nc5 {[%clk 0:01:42.2]} 29... Qc7 {[%clk 0:02:05.9]} 30. Kb2 {[%clk
0:01:27.9]} 30... Ka7 {[%clk 0:02:03.8]} 31. Nc4 {[%clk 0:01:24.5]} 31... Nxf4
{[%clk 0:01:58.8]} 32. Qb4 {[%clk 0:00:59.9]} 32... Nxg2 {[%clk 0:01:56.5]} 33.
Nxb7 {[%clk 0:00:51.3]} 33... Qxb7 {[%clk 0:01:47.2]} 34. Qc5+ {[%clk
0:00:51.3]} 34... Kb8 {[%clk 0:01:43]} 35. Na5 {[%clk 0:00:45.4]} 35... Nf4
{[%clk 0:01:13]} 36. Nxb7 {[%clk 0:00:43.5]} 36... Nd3+ {[%clk 0:01:12.5]} 0-1

[Event "*** Titled Tuesday Blitz"]
[Site "Chess.com"]
[Date "2018.05.01"]
[Round "2"]
[White "MikaelyanArman"]
[Black "Kouzari"]
[Result "1/2-1/2"]
[WhiteElo "2625"]
[BlackElo "2644"]
[TimeControl "180+2"]
[EndTime "13:19:58 PDT"]
[Termination "Game drawn by repetition"]

1. Nf3 {[%clk 0:03:01.9]} 1... d5 {[%clk 0:03:00.6]} 2. d4 {[%clk 0:03:02.1]}
2... Nf6 {[%clk 0:03:01.2]} 3. c4 {[%clk 0:03:03]} 3... c6 {[%clk 0:03:02.4]} 4.
Nc3 {[%clk 0:03:03.7]} 4... e6 {[%clk 0:03:01.8]} 5. g3 {[%clk 0:03:04]} 5...
dxc4 {[%clk 0:02:58.2]} 6. Bg2 {[%clk 0:03:04.5]} 6... Nbd7 {[%clk 0:02:53]} 7.
O-O {[%clk 0:03:03.3]} 7... Be7 {[%clk 0:02:51.4]} 8. e4 {[%clk 0:03:01.4]} 8...
O-O {[%clk 0:02:49.3]} 9. Qe2 {[%clk 0:02:45.3]} 9... b5 {[%clk 0:02:49.7]} 10.
a4 {[%clk 0:02:46.3]} 10... b4 {[%clk 0:02:41.4]} 11. e5 {[%clk 0:02:45.9]}
11... bxc3 {[%clk 0:02:41.9]} 12. exf6 {[%clk 0:02:46.5]} 12... Nxf6 {[%clk
0:02:21.5]} 13. bxc3 {[%clk 0:02:46.7]} 13... Nd5 {[%clk 0:02:22.8]} 14. Ne5
{[%clk 0:02:33.9]} 14... Nxc3 {[%clk 0:02:13.8]} 15. Qxc4 {[%clk 0:02:11.1]}
15... Qxd4 {[%clk 0:02:13.9]} 16. Qxd4 {[%clk 0:02:05.2]} 16... Ne2+ {[%clk
0:02:14.7]} 17. Kh1 {[%clk 0:02:06.5]} 17... Nxd4 {[%clk 0:02:16.1]} 18. Be3
{[%clk 0:02:02.5]} 18... Nc2 {[%clk 0:02:11.2]} 19. Nxc6 {[%clk 0:01:57.9]}
19... Bf6 {[%clk 0:02:04.6]} 20. Rab1 {[%clk 0:01:32.2]} 20... Nxe3 {[%clk
0:01:59.5]} 21. fxe3 {[%clk 0:01:34.1]} 21... Bd7 {[%clk 0:01:39.1]} 22. a5
{[%clk 0:01:16]} 22... Bxc6 {[%clk 0:01:25.3]} 23. Bxc6 {[%clk 0:01:17.9]} 23...
Rab8 {[%clk 0:01:21]} 24. a6 {[%clk 0:01:14.6]} 24... Be7 {[%clk 0:01:11.9]} 25.
Rb7 {[%clk 0:01:14.5]} 25... Bc5 {[%clk 0:01:01.5]} 26. Rfxf7 {[%clk 0:01:12.6]}
26... Rxf7 {[%clk 0:01:00.9]} 27. Rxb8+ {[%clk 0:01:12.7]} 27... Rf8 {[%clk
0:01:02.2]} 28. Rb3 {[%clk 0:00:54.2]} 28... Rf2 {[%clk 0:01:02.5]} 29. Rc3
{[%clk 0:00:54.2]} 29... Bb6 {[%clk 0:01:02.6]} 30. Rb3 {[%clk 0:00:52.7]} 30...
Bc5 {[%clk 0:01:02.9]} 31. Rc3 {[%clk 0:00:42.9]} 31... Bb6 {[%clk 0:01:03.1]}
32. Rb3 {[%clk 0:00:32]} 32... Bc5 {[%clk 0:00:56.1]} 33. Rc3 {[%clk 0:00:29]}
33... Bb6 {[%clk 0:00:57]} 1/2-1/2

[Event "*** Titled Tuesday Blitz"]
[Site "Chess.com"]
[Date "2018.05.01"]
[Round "2"]
[White "Msb2"]
[Black "Al_Shima"]
[Result "1-0"]
[WhiteElo "2717"]
[BlackElo "2403"]
[TimeControl "180+2"]
[EndTime "13:19:59 PDT"]
[Termination "Msb2 won by resignation"]

1. d4 {[%clk 0:03:01.9]} 1... Nc6 {[%clk 0:02:59.1]} 2. d5 {[%clk 0:03:02.6]}
2... Ne5 {[%clk 0:03:00.1]} 3. e4 {[%clk 0:03:04.2]} 3... e6 {[%clk 0:02:59.1]}
4. dxe6 {[%clk 0:03:06.1]} 4... fxe6 {[%clk 0:02:59.6]} 5. Nc3 {[%clk
0:03:07.6]} 5... Bb4 {[%clk 0:02:59.3]} 6. Qd4 {[%clk 0:03:06.8]} 6... Bxc3+
{[%clk 0:02:57.7]} 7. Qxc3 {[%clk 0:03:07.5]} 7... d6 {[%clk 0:02:32.8]} 8. f4
{[%clk 0:03:01.9]} 8... Ng6 {[%clk 0:02:24.6]} 9. Qxg7 {[%clk 0:02:55.3]} 9...
Qf6 {[%clk 0:02:21.4]} 10. Qxf6 {[%clk 0:02:37.7]} 10... Nxf6 {[%clk 0:02:23.3]}
11. Bd3 {[%clk 0:02:39.3]} 11... Bd7 {[%clk 0:02:21.9]} 12. Ne2 {[%clk
0:02:32.1]} 12... Bc6 {[%clk 0:02:20.4]} 13. Nc3 {[%clk 0:02:33.3]} 13... O-O
{[%clk 0:02:10.7]} 14. O-O {[%clk 0:02:30.9]} 14... Rf7 {[%clk 0:02:10.6]} 15.
Bd2 {[%clk 0:02:22.4]} 15... Raf8 {[%clk 0:02:10.3]} 16. g3 {[%clk 0:02:23.5]}
16... d5 {[%clk 0:01:43.3]} 17. e5 {[%clk 0:01:57.9]} 17... Nd7 {[%clk
0:01:32.7]} 18. Ne2 {[%clk 0:01:42.9]} 18... Nc5 {[%clk 0:01:28.9]} 19. Nd4
{[%clk 0:01:21.6]} 19... Bd7 {[%clk 0:01:29.8]} 20. b4 {[%clk 0:01:21.7]} 20...
Nxd3 {[%clk 0:01:27.4]} 21. cxd3 {[%clk 0:01:23.6]} 21... Ne7 {[%clk 0:01:23.1]}
22. Rac1 {[%clk 0:01:07.3]} 22... Nc6 {[%clk 0:01:06.8]} 23. Nb3 {[%clk
0:01:08.3]} 23... Bc8 {[%clk 0:00:51.2]} 24. b5 {[%clk 0:01:04.8]} 24... Nb8
{[%clk 0:00:45.4]} 25. Bb4 {[%clk 0:01:05.5]} 25... Rd8 {[%clk 0:00:45.2]} 26.
a4 {[%clk 0:01:05.5]} 26... c6 {[%clk 0:00:41.4]} 27. Bd6 {[%clk 0:01:04.4]}
27... Nd7 {[%clk 0:00:37.7]} 28. bxc6 {[%clk 0:01:05]} 28... bxc6 {[%clk
0:00:38.7]} 29. Rxc6 {[%clk 0:01:06.9]} 29... Bb7 {[%clk 0:00:22.5]} 30. Rc7
{[%clk 0:01:08.1]} 30... Ba6 {[%clk 0:00:23.7]} 31. Rd1 {[%clk 0:01:05.1]} 31...
Nb6 {[%clk 0:00:24.5]} 32. Nc5 {[%clk 0:01:05.4]} 32... Rxc7 {[%clk 0:00:22]}
33. Bxc7 {[%clk 0:01:07.3]} 33... Re8 {[%clk 0:00:23]} 34. Bxb6 {[%clk
0:01:06.7]} 34... axb6 {[%clk 0:00:23.9]} 35. Nxa6 {[%clk 0:01:08.2]} 35... Ra8
{[%clk 0:00:25.5]} 36. Nc7 {[%clk 0:01:09.6]} 36... Rxa4 {[%clk 0:00:26.8]} 37.
Nxe6 {[%clk 0:01:11.1]} 37... Ra2 {[%clk 0:00:28.1]} 38. Rb1 {[%clk 0:01:10]}
1-0

[Event "*** Titled Tuesday Blitz"]
[Site "Chess.com"]
[Date "2018.05.01"]
[Round "2"]
[White "Albertu"]
[Black "PrinceCharming92"]
[Result "0-1"]
[WhiteElo "2303"]
[BlackElo "2466"]
[TimeControl "180+2"]
[EndTime "13:20:16 PDT"]
[Termination "PrinceCharming92 won by resignation"]

1. e4 {[%clk 0:03:01]} 1... d5 {[%clk 0:03:00.6]} 2. exd5 {[%clk 0:03:01.7]}
2... Qxd5 {[%clk 0:03:02.5]} 3. Nc3 {[%clk 0:03:02.6]} 3... Qd6 {[%clk
0:03:03.1]} 4. Bc4 {[%clk 0:03:02.6]} 4... Nf6 {[%clk 0:03:03.8]} 5. d4 {[%clk
0:03:02]} 5... c6 {[%clk 0:03:04.3]} 6. Nge2 {[%clk 0:03:02.5]} 6... Bf5 {[%clk
0:03:04.9]} 7. Bf4 {[%clk 0:03:03.1]} 7... Qd8 {[%clk 0:03:06.3]} 8. O-O {[%clk
0:03:03.9]} 8... e6 {[%clk 0:03:07.6]} 9. a4 {[%clk 0:02:51.9]} 9... a5 {[%clk
0:03:04.7]} 10. Ng3 {[%clk 0:02:43]} 10... Bg6 {[%clk 0:03:05]} 11. Qe2 {[%clk
0:02:42.4]} 11... Be7 {[%clk 0:03:05.3]} 12. Rad1 {[%clk 0:02:35.8]} 12... O-O
{[%clk 0:03:06.2]} 13. Nce4 {[%clk 0:02:31]} 13... Nbd7 {[%clk 0:02:59.6]} 14.
Bb3 {[%clk 0:02:11.1]} 14... Nb6 {[%clk 0:02:47.6]} 15. Bc1 {[%clk 0:02:07.8]}
15... h6 {[%clk 0:02:43.2]} 16. f4 {[%clk 0:02:04.9]} 16... Qc7 {[%clk
0:02:39.2]} 17. f5 {[%clk 0:02:01.5]} 17... exf5 {[%clk 0:02:38.3]} 18. Nxf5
{[%clk 0:01:58.8]} 18... Nxe4 {[%clk 0:02:33.5]} 19. Qxe4 {[%clk 0:01:56.6]}
19... Bf6 {[%clk 0:02:24.9]} 20. Nxh6+ {[%clk 0:01:55.1]} 20... Kh7 {[%clk
0:02:14.1]} 21. Qe3 {[%clk 0:01:36.5]} 21... Nd5 {[%clk 0:01:58.5]} 22. Qh3
{[%clk 0:01:36.2]} 22... Qc8 {[%clk 0:01:40.1]} 23. Ng4+ {[%clk 0:01:28.8]}
23... Kg8 {[%clk 0:01:40.2]} 24. Bxd5 {[%clk 0:01:18.4]} 24... cxd5 {[%clk
0:01:37.4]} 25. Rxf6 {[%clk 0:01:16.7]} 25... gxf6 {[%clk 0:01:23.5]} 26. Nxf6+
{[%clk 0:01:15.7]} 26... Kg7 {[%clk 0:01:21.7]} 27. Bh6+ {[%clk 0:00:42.2]}
27... Kxf6 {[%clk 0:01:20.8]} 28. Qh4+ {[%clk 0:00:30.2]} 28... Ke6 {[%clk
0:01:18.2]} 29. Re1+ {[%clk 0:00:28]} 29... Be4 {[%clk 0:01:16.5]} 30. Rxe4+
{[%clk 0:00:29.3]} 30... dxe4 {[%clk 0:01:16.6]} 31. Qxe4+ {[%clk 0:00:31.2]}
31... Kd7 {[%clk 0:01:13]} 32. Qf5+ {[%clk 0:00:20.3]} 32... Ke8 {[%clk
0:01:11.7]} 33. Qe5+ {[%clk 0:00:10.5]} 33... Qe6 {[%clk 0:01:12.4]} 34. Bxf8
{[%clk 0:00:11.8]} 34... Qxe5 {[%clk 0:01:11]} 35. dxe5 {[%clk 0:00:13.7]} 35...
Kxf8 {[%clk 0:01:11.7]} 36. Kf2 {[%clk 0:00:14.8]} 36... Rc8 {[%clk 0:01:10.3]}
37. c3 {[%clk 0:00:14]} 37... Rc5 {[%clk 0:01:10.9]} 0-1